[Event "FIDE WSTC Open 50 2025"]
[Site "Prague"]
[Date "2025.02.17"]
[Round "1.31"]
[White "Wolf, Volker"]
[Black "Czyz, Andrzej"]
[Result "1/2-1/2"]
[Annotator "ChessBase"]
[ECO "C01"]
[WhiteElo "2206"]
[BlackElo "1941"]
[PlyCount "150"]
[EventDate "2025.02.17"]
[EventType "team-tourn"]
[EventCountry "CZE"]
[SourceTitle "playchess.com"]
[Source "ChessBase"]
[SourceQuality "1"]
[TimeControl "40/5400+30:1800+30"]

1. e4 {[%emt 0:00:17]} e6 {[%emt 0:00:28]} 2. d4 {[%emt 0:00:42]} d5 {[%emt 0:00:05]} 3. exd5 {[%emt 0:01:14]} exd5 {[%emt 0:00:08]} 4. Nf3 {[%emt 0:00:27]} Nc6 {[%emt 0:00:32]} 5. Bd3 {[%emt 0:01:09]} Bd6 {[%emt 0:00:22]} 6. O-O {[%emt 0:01:45]} Nge7 {[%emt 0:00:36]} 7. Re1 {[%emt 0:00:52]} Bg4 {[%emt 0:03:58]} 8. c3 {[%emt 0:00:13]} Qd7 {[%emt 0:01:08]} 9. Nbd2 {[%emt 0:01:30]} Bf5 {[%emt 0:02:39]} 10. Nf1 {[%emt 0:01:53]} Bxd3 {[%emt 0:00:54]} 11. Qxd3 {[%emt 0:00:02]} O-O {[%emt 0:03:52]} 12. Ng3 {[%emt 0:02:55]} Rae8 {[%emt 0:13:03]} 13. Bd2 {[%emt 0:01:45]} Ng6 {[%emt 0:02:32]} 14. Qf5 {[%emt 0:12:32]} Qxf5 {[%emt 0:06:51]} 15. Nxf5 {[%emt 0:00:04]} Bf4 {[%emt 0:02:29]} 16. Be3 {[%emt 0:04:48]} Bxe3 {[%emt 0:06:21]} 17. Nxe3 {[%emt 0:00:54]} Nce7 {[%emt 0:02:31]} 18. g3 {[%emt 0:00:51]} c6 {[%emt 0:00:37]} 19. h4 {[%emt 0:03:42]} f6 {[%emt 0:07:04]} 20. b3 {[%emt 0:07:06]} Nc8 {[%emt 0:03:40]} 21. c4 {[%emt 0:11:57]} dxc4 {[%emt 0:09:52]} 22. bxc4 {[%emt 0:00:11]} b6 {[%emt 0:00:36]} 23. a4 {[%emt 0:02:06]} a6 {[%emt 0:03:27]} 24. Rab1 {[%emt 0:10:35]} Nge7 {[%emt 0:03:32]} 25. d5 {[%emt 0:02:43]} cxd5 {[%emt 0:05:11]} 26. cxd5 {[%emt 0:00:17]} Rd8 {[%emt 0:00:05]} 27. Nd4 {[%emt 0:02:19]} Rd6 {[%emt 0:00:05]} 28. Ne6 {[%emt 0:02:29]} Re8 {[%emt 0:01:13]} 29. Nc7 {[%emt 0:01:35]} Red8 {[%emt 0:00:06]} 30. Rec1 {[%emt 0:00:46]} b5 {[%emt 0:07:02]} 31. axb5 {[%emt 0:01:12]} axb5 {[%emt 0:00:01]} 32. Nxb5 {[%emt 0:01:51]} R6d7 {[%emt 0:00:40]} 33. Nc7 {[%emt 0:00:33]} Nd6 {[%emt 0:00:49]} 34. Ne6 {[%emt 0:01:29]} Rc8 {[%emt 0:01:36]} 35. Rxc8+ {[%emt 0:00:50]} Nexc8 {[%emt 0:00:47]} 36. Rb8 {[%emt 0:01:18]} Kf7 {[%emt 0:00:15]} 37. h5 {[%emt 0:02:43]} g6 {[%emt 0:02:32]} 38. hxg6+ {[%emt 0:01:50]} hxg6 {[%emt 0:00:11]} 39. Kf1 {[%emt 0:02:01]} Ke7 {[%emt 0:02:04]} 40. Ke2 {[%emt 0:02:18]} Rb7 {[%emt 0:00:47]} 41. Rxb7+ {[%emt 0:32:14]} Nxb7 {[%emt 0:30:02]} 42. Nc4 {[%emt 0:00:21]} Nbd6 {[%emt 0:03:17]} 43. Ne3 {[%emt 0:03:34]} Ne4 {[%emt 0:01:04]} 44. Nf4 {[%emt 0:02:12]} g5 {[%emt 0:01:43]} 45. Nh5 {[%emt 0:04:58]} Ncd6 {[%emt 0:00:00]} 46. f3 {[%emt 0:00:00]} Nc5 {[%emt 0:00:00]} 47. Ng7 {[%emt 0:00:00]} Nb5 {[%emt 0:00:00]} 48. Ngf5+ {[%emt 0:00:00]} Kf7 {[%emt 0:00:00]} 49. Kd2 {[%emt 0:00:00]} Nd7 {[%emt 0:00:00]} 50. Nc4 {[%emt 0:00:00]} Kg6 {[%emt 0:00:00]} 51. g4 {[%emt 0:00:00]} Kf7 {[%emt 0:00:00]} 52. Ncd6+ {[%emt 0:00:00]} Nxd6 {[%emt 0:00:00]} 53. Nxd6+ {[%emt 0:00:00]} Ke7 54. Nc4 {[%emt 0:00:00]} Nf8 {[%emt 0:00:00]} 55. Ke3 {[%emt 0:00:00]} Ng6 {[%emt 0:00:00]} 56. Kd4 {[%emt 0:00:00]} Nh4 {[%emt 0:00:00]} 57. Ke4 {[%emt 0:00:00]} Ng2 {[%emt 0:00:00]} 58. Ne3 {[%emt 0:00:00]} Nf4 {[%emt 0:00:00]} 59. Kf5 {[%emt 0:00:00]} Nd3 {[%emt 0:00:00]} 60. d6+ {[%emt 0:00:00]} Kxd6 {[%emt 0:00:00]} 61. Kxf6 {[%emt 0:00:00]} Ne5 {[%emt 0:00:00]} 62. Nf5+ {[%emt 0:04:45]} Kd5 {[%emt 0:00:00]} 63. Ne3+ {[%emt 0:01:58]} Kd6 {[%emt 0:00:00]} 64. Kxg5 {[%emt 0:00:30]} Nxf3+ {[%emt 0:00:00]} 65. Kf4 {[%emt 0:00:17]} Ne5 {[%emt 0:00:00]} 66. g5 {[%emt 0:00:19]} Ke6 {[%emt 0:00:00]} 67. Ng4 {[%emt 0:00:59]} Ng6+ {[%emt 0:00:58]} 68. Ke4 {[%emt 0:00:10]} Ne7 {[%emt 0:01:07]} 69. Ne5 {[%emt 0:00:15]} Kd6 {[%emt 0:00:33]} 70. Nd3 {[%emt 0:00:10]} Ke6 {[%emt 0:00:27]} 71. Nf4+ {[%emt 0:00:18]} Kf7 {[%emt 0:00:13]} 72. Kd4 {[%emt 0:01:28]} Nf5+ {[%emt 0:00:44]} 73. Ke5 {[%emt 0:00:35]} Ne7 {[%emt 0:00:14]} 74. Kd6 {[%emt 0:00:20]} Nf5+ {[%emt 0:00:07]} 75. Ke5 {[%emt 0:00:09]} Ne7 {[%emt 0:00:02]} 1/2-1/2

[Event "FIDE WSTC Open 50 2025"]
[Site "Prague"]
[Date "2025.02.17"]
[Round "1.32"]
[White "Wielosz, Jaroslaw"]
[Black "Polster, Wolfgang"]
[Result "1/2-1/2"]
[Annotator "NA"]
[ECO "A11"]
[WhiteElo "1930"]
[BlackElo "2131"]
[PlyCount "101"]
[EventDate "2025.02.17"]
[EventType "team-tourn"]
[EventCountry "CZE"]
[SourceTitle "playchess.com"]
[Source "ChessBase"]
[SourceQuality "1"]
[TimeControl "40/5400+30:1800+30"]

1. c4 {[%emt 0:00:06]} c6 {[%emt 0:00:40]} 2. d4 {[%emt 0:00:57]} f5 {[%emt 0:00:43]} 3. Nf3 {[%emt 0:02:05]} Nf6 {[%emt 0:00:43]} 4. g3 {[%emt 0:00:34]} g6 {[%emt 0:00:24]} 5. Bg2 {[%emt 0:00:18]} Bg7 {[%emt 0:00:26]} 6. b4 {[%emt 0:03:20]} d6 {[%emt 0:08:37]} 7. Bb2 {[%emt 0:00:39]} Nbd7 {[%emt 0:00:40]} 8. Qb3 {[%emt 0:05:17]} Nb6 {[%emt 0:09:25]} 9. Nbd2 {[%emt 0:07:00]} O-O {[%emt 0:08:35]} 10. O-O {[%emt 0:01:22]} Kh8 {[%emt 0:05:41]} 11. a4 {[%emt 0:12:24]} a5 {[%emt 0:03:55]} 12. bxa5 {[%emt 0:04:07]} Rxa5 {[%emt 0:00:22]} 13. Bc3 {[%emt 0:03:59]} Ra6 {[%emt 0:01:50]} 14. a5 {[%emt 0:02:26]} Na8 {[%emt 0:00:37]} 15. Qc2 {[%emt 0:08:01]} Nc7 {[%emt 0:02:06]} 16. e4 {[%emt 0:09:08]} fxe4 {[%emt 0:01:42]} 17. Nxe4 {[%emt 0:02:58]} Bf5 {[%emt 0:00:22]} 18. Nh4 {[%emt 0:00:31]} Nxe4 {[%emt 0:00:57]} 19. Bxe4 {[%emt 0:00:24]} Bxe4 {[%emt 0:00:16]} 20. Qxe4 {[%emt 0:00:47]} d5 {[%emt 0:00:11]} 21. cxd5 {[%emt 0:06:49]} cxd5 {[%emt 0:10:17]} 22. Qd3 {[%emt 0:06:13]} Qd7 {[%emt 0:04:44]} 23. Rab1 {[%emt 0:06:23]} Ne6 {[%emt 0:00:38]} 24. f4 {[%emt 0:03:54]} Nd8 {[%emt 0:01:35]} 25. Nf3 {[%emt 0:01:15]} Nc6 {[%emt 0:03:00]} 26. Ne5 {[%emt 0:01:13]} Nxe5 {[%emt 0:01:29]} 27. dxe5 {[%emt 0:00:58]} e6 {[%emt 0:06:34]} 28. Qb5 {[%emt 0:02:53]} Rf7 {[%emt 0:01:25]} 29. Bd4 {[%emt 0:01:47]} Rc6 {[%emt 0:00:48]} 30. Bb6 {[%emt 0:00:49]} g5 {[%emt 0:01:31]} 31. fxg5 {[%emt 0:02:32]} Rxf1+ {[%emt 0:00:36]} 32. Qxf1 {[%emt 0:00:40]} Rc4 {[%emt 0:01:54]} 33. Re1 {[%emt 0:01:41]} Kg8 {[%emt 0:01:12]} 34. Qd3 {[%emt 0:00:53]} Qe8 {[%emt 0:00:40]} 35. h4 {[%emt 0:01:13]} Qc6 {[%emt 0:02:05]} 36. g6 {[%emt 0:00:46]} Rc3 {[%emt 0:00:17]} 37. gxh7+ {[%emt 0:00:21]} Kh8 {[%emt 0:00:14]} 38. Qg6 {[%emt 0:00:39]} d4 {[%emt 0:04:55]} 39. Rf1 {[%emt 0:00:38]} Rc1 {[%emt 0:00:17]} 40. Rxc1 {[%emt 0:01:48]} Qxc1+ {[%emt 0:00:06]} 41. Kg2 {[%emt 0:30:39]} Qd2+ {[%emt 0:31:31]} 42. Kh3 {[%emt 0:00:00]} Qd1 {[%emt 0:00:00]} 43. Qe4 {[%emt 0:00:00]} d3 {[%emt 0:00:00]} 44. Be3 {[%emt 0:00:00]} d2 {[%emt 0:00:00]} 45. Qg2 {[%emt 0:00:00]} Bxe5 {[%emt 0:00:00]} 46. Bxd2 {[%emt 0:00:00]} Qb1 {[%emt 0:00:00]} 47. Qe2 {[%emt 0:00:00]} Qh1+ {[%emt 0:00:00]} 48. Kg4 {[%emt 0:00:00]} Qd5 {[%emt 0:00:00]} 49. Kh3 {[%emt 0:00:00]} Qh1+ {[%emt 0:00:00]} 50. Kg4 {[%emt 0:00:00]} Qd5 {[%emt 0:00:00]} 51. Kh3 {[%emt 0:00:00]} 1/2-1/2

[Event "FIDE WSTC Open 50 2025"]
[Site "Prague"]
[Date "2025.02.17"]
[Round "1.33"]
[White "Ghannoum, Marc"]
[Black "Csiszar, Csaba"]
[Result "1-0"]
[Annotator "ChessBase"]
[ECO "B30"]
[WhiteElo "2229"]
[BlackElo "2378"]
[PlyCount "79"]
[EventDate "2025.02.17"]
[EventType "team-tourn"]
[EventCountry "CZE"]
[SourceTitle "playchess.com"]
[Source "ChessBase"]
[SourceQuality "1"]
[TimeControl "40/5400+30:1800+30"]

1. e4 {[%emt 0:00:04]} c5 {[%emt 0:00:10]} 2. Nf3 {[%emt 0:00:33]} Nc6 {[%emt 0:00:06]} 3. Bb5 {[%emt 0:00:14]} d6 {[%emt 0:00:12]} 4. O-O {[%emt 0:02:01]} Bd7 {[%emt 0:00:49]} 5. Re1 {[%emt 0:00:26]} Nf6 {[%emt 0:00:05]} 6. c3 {[%emt 0:01:21]} a6 {[%emt 0:00:09]} 7. Bf1 {[%emt 0:02:36]} Bg4 {[%emt 0:00:46]} 8. d4 {[%emt 0:01:41]} Bxf3 {[%emt 0:11:58]} 9. gxf3 {[%emt 0:00:38]} g5 {[%emt 0:00:10]} 10. Kh1 {[%emt 0:00:59]} Rg8 {[%emt 0:01:59]} 11. Be3 {[%emt 0:00:57]} e6 {[%emt 0:09:50]} 12. b4 {[%emt 0:03:11]} cxd4 {[%emt 0:04:01]} 13. cxd4 {[%emt 0:00:37]} g4 {[%emt 0:09:16]} 14. Nc3 {[%emt 0:11:19]} gxf3 {[%emt 0:11:07]} 15. b5 {[%emt 0:15:48]} Ng4 {[%emt 0:06:51]} 16. Qxf3 {[%emt 0:05:30]} Nb4 {[%emt 0:04:52]} 17. Bh3 {[%emt 0:05:43]} h5 {[%emt 0:05:57]} 18. Rab1 {[%emt 0:07:01]} a5 {[%emt 0:18:50]} 19. Bxg4 {[%emt 0:14:05]} hxg4 {[%emt 0:00:29]} 20. Qe2 {[%emt 0:00:23]} Qf6 {[%emt 0:03:31]} 21. Rg1 {[%emt 0:04:14]} Rh8 {[%emt 0:02:58]} 22. Rxg4 {[%emt 0:03:25]} Rc8 {[%emt 0:02:10]} 23. Rc1 {[%emt 0:03:26]} Bh6 {[%emt 0:00:55]} 24. e5 {[%emt 0:04:28]} Qf5 {[%emt 0:03:34]} 25. Ne4 {[%emt 0:00:29]} Rxc1+ {[%emt 0:00:20]} 26. Bxc1 {[%emt 0:00:06]} Kd7 {[%emt 0:00:18]} 27. Nxd6 {[%emt 0:03:18]} Qd3 {[%emt 0:01:15]} 28. Qxd3 {[%emt 0:06:23]} Nxd3 {[%emt 0:00:04]} 29. Rh4 {[%emt 0:00:14]} Nxc1 {[%emt 0:01:36]} 30. Nxf7 {[%emt 0:00:10]} Rf8 {[%emt 0:00:06]} 31. Nxh6 {[%emt 0:00:08]} Nxa2 {[%emt 0:00:16]} 32. Ng4 {[%emt 0:01:24]} Nc3 {[%emt 0:01:05]} 33. Nf6+ {[%emt 0:00:19]} Kc8 {[%emt 0:00:34]} 34. b6 {[%emt 0:02:28]} Rd8 {[%emt 0:00:38]} 35. Rh7 {[%emt 0:01:25]} Kb8 {[%emt 0:00:21]} 36. Nd7+ {[%emt 0:00:23]} Ka8 {[%emt 0:00:11]} 37. Nc5 {[%emt 0:00:05]} Ne2 {[%emt 0:00:59]} 38. Rxb7 {[%emt 0:00:22]} Nxd4 {[%emt 0:00:25]} 39. Ra7+ {[%emt 0:00:05]} Kb8 {[%emt 0:00:02]} 40. Na6+ {[%emt 0:00:05]} 1-0

[Event "FIDE WSTC Open 50 2025"]
[Site "Prague"]
[Date "2025.02.17"]
[Round "1.34"]
[White "Varga, Zoltan"]
[Black "Gravel, Simon"]
[Result "1/2-1/2"]
[Annotator "ChessBase"]
[ECO "A33"]
[WhiteElo "2301"]
[BlackElo "2265"]
[PlyCount "30"]
[EventDate "2025.02.17"]
[EventType "team-tourn"]
[EventCountry "CZE"]
[SourceTitle "playchess.com"]
[Source "ChessBase"]
[SourceQuality "1"]
[TimeControl "40/5400+30:1800+30"]

1. c4 {[%emt 0:00:03]} c5 {[%emt 0:00:05]} 2. Nf3 {[%emt 0:00:03]} Nc6 {[%emt 0:00:18]} 3. d4 {[%emt 0:00:06]} cxd4 {[%emt 0:00:07]} 4. Nxd4 {[%emt 0:00:04]} Nf6 {[%emt 0:01:51]} 5. Nc3 {[%emt 0:00:07]} e6 {[%emt 0:00:26]} 6. Ndb5 {[%emt 0:00:59]} d5 {[%emt 0:02:37]} 7. Bf4 {[%emt 0:02:03]} e5 {[%emt 0:00:55]} 8. cxd5 {[%emt 0:00:46]} exf4 {[%emt 0:00:29]} 9. dxc6 {[%emt 0:00:02]} bxc6 {[%emt 0:00:22]} 10. Qd4 Qd7 11. Qxd7+ {[%emt 0:03:29]} Bxd7 {[%emt 0:02:43]} 12. Nd4 {[%emt 0:02:05]} Rb8 {[%emt 0:04:27]} 13. Nb3 {[%emt 0:02:59]} Be6 {[%emt 0:37:12]} 14. Na4 {[%emt 0:12:00]} Ne4 {[%emt 0:15:15]} 15. g4 {[%emt 0:24:41]} g6 {[%emt 0:00:00]} 1/2-1/2

[Event "FIDE WSTC Open 50 2025"]
[Site "Prague"]
[Date "2025.02.17"]
[Round "1.35"]
[White "Bergeron, Pascal"]
[Black "Horvath, Peter"]
[Result "0-1"]
[Annotator "ChessBase"]
[ECO "D00"]
[WhiteElo "2065"]
[BlackElo "2354"]
[PlyCount "74"]
[EventDate "2025.02.17"]
[EventType "team-tourn"]
[EventCountry "CZE"]
[SourceTitle "playchess.com"]
[Source "ChessBase"]
[SourceQuality "1"]
[TimeControl "40/5400+30:1800+30"]

1. d4 {[%emt 0:00:04]} d5 {[%emt 0:00:08]} 2. Nc3 {[%emt 0:00:13]} c5 {[%emt 0:02:32]} 3. e4 {[%emt 0:02:02]} dxe4 {[%emt 0:04:25]} 4. d5 {[%emt 0:00:26]} Nf6 {[%emt 0:06:34]} 5. Bf4 {[%emt 0:01:37]} a6 {[%emt 0:06:12]} 6. Qd2 {[%emt 0:02:04]} Nbd7 {[%emt 0:07:59]} 7. f3 {[%emt 0:05:55]} e3 {[%emt 0:09:29]} 8. Bxe3 {[%emt 0:06:31]} g6 {[%emt 0:01:09]} 9. O-O-O {[%emt 0:02:42]} Bg7 {[%emt 0:04:05]} 10. Bh6 {[%emt 0:11:28]} Bxh6 {[%emt 0:11:02]} 11. Qxh6 {[%emt 0:00:09]} b5 {[%emt 0:00:16]} 12. Nh3 {[%emt 0:04:43]} Bb7 {[%emt 0:11:39]} 13. Nf4 {[%emt 0:07:06]} Qb6 {[%emt 0:05:25]} 14. Kb1 {[%emt 0:16:13]} O-O-O {[%emt 0:01:45]} 15. Be2 {[%emt 0:03:54]} c4 {[%emt 0:10:04]} 16. Rhe1 {[%emt 0:12:31]} Nc5 {[%emt 0:00:29]} 17. Bf1 {[%emt 0:04:30]} b4 {[%emt 0:01:23]} 18. Ne4 {[%emt 0:00:40]} Ncxe4 {[%emt 0:01:59]} 19. fxe4 {[%emt 0:00:37]} Qc5 {[%emt 0:02:20]} 20. Qh3+ {[%emt 0:01:27]} Kb8 {[%emt 0:00:18]} 21. b3 {[%emt 0:01:32]} g5 {[%emt 0:04:09]} 22. Nh5 {[%emt 0:02:34]} cxb3 {[%emt 0:01:36]} 23. axb3 {[%emt 0:01:16]} Nxh5 {[%emt 0:00:58]} 24. Qxh5 {[%emt 0:00:18]} f6 {[%emt 0:00:25]} 25. Qf3 {[%emt 0:02:57]} a5 {[%emt 0:00:56]} 26. Qg3+ {[%emt 0:04:12]} Ka7 {[%emt 0:01:24]} 27. Qd3 {[%emt 0:02:21]} Rd6 {[%emt 0:02:09]} 28. g3 {[%emt 0:00:44]} Rc8 {[%emt 0:00:32]} 29. Bg2 {[%emt 0:00:42]} Ba6 {[%emt 0:01:41]} 30. Qd2 {[%emt 0:00:12]} Rb6 {[%emt 0:00:58]} 31. e5 {[%emt 0:00:36]} fxe5 {[%emt 0:00:13]} 32. Rxe5 {[%emt 0:00:18]} a4 {[%emt 0:00:32]} 33. bxa4 {[%emt 0:01:42]} b3 {[%emt 0:00:16]} 34. c3 {[%emt 0:00:29]} b2 {[%emt 0:00:32]} 35. Qxg5 {[%emt 0:02:28]} Rc7 {[%emt 0:01:00]} 36. Re6 {[%emt 0:00:34]} Qxc3 {[%emt 0:00:21]} 37. Rc6 {[%emt 0:00:30]} Bd3+ {[%emt 0:00:20]} 0-1

[Event "FIDE WSTC Open 50 2025"]
[Site "Prague"]
[Date "2025.02.17"]
[Round "1.36"]
[White "Krizsany, Laszlo"]
[Black "Joel O. Ebiekuta"]
[Result "1-0"]
[Annotator "ChessBase"]
[ECO "E73"]
[WhiteElo "2303"]
[BlackElo "1887"]
[PlyCount "113"]
[EventDate "2025.02.17"]
[EventType "team-tourn"]
[EventCountry "CZE"]
[SourceTitle "playchess.com"]
[Source "ChessBase"]
[SourceQuality "1"]
[TimeControl "40/5400+30:1800+30"]

1. d4 {[%emt 0:00:07]} g6 {[%emt 0:00:10]} 2. c4 {[%emt 0:00:07]} Bg7 {[%emt 0:00:08]} 3. e4 {[%emt 0:00:06]} d6 {[%emt 0:00:19]} 4. Nc3 {[%emt 0:00:29]} Nf6 {[%emt 0:00:19]} 5. Be2 {[%emt 0:00:11]} O-O {[%emt 0:00:20]} 6. Bg5 {[%emt 0:00:06]} Nbd7 {[%emt 0:00:57]} 7. Qd2 {[%emt 0:00:20]} c6 {[%emt 0:01:25]} 8. Rd1 {[%emt 0:03:10]} a6 {[%emt 0:03:30]} 9. Nf3 {[%emt 0:02:33]} b5 {[%emt 0:02:57]} 10. a3 {[%emt 0:04:33]} Qc7 {[%emt 0:01:49]} 11. O-O {[%emt 0:04:09]} Bb7 {[%emt 0:03:28]} 12. Rfe1 {[%emt 0:05:16]} Rfe8 {[%emt 0:06:04]} 13. Rc1 {[%emt 0:07:12]} bxc4 {[%emt 0:11:13]} 14. Bxc4 {[%emt 0:00:52]} Rad8 {[%emt 0:08:17]} 15. b4 {[%emt 0:03:22]} a5 {[%emt 0:04:06]} 16. Qa2 {[%emt 0:02:51]} d5 {[%emt 0:03:07]} 17. exd5 {[%emt 0:04:29]} cxd5 {[%emt 0:01:07]} 18. Nxd5 {[%emt 0:00:36]} Nxd5 {[%emt 0:01:01]} 19. Bxd5 {[%emt 0:00:10]} Bxd5 {[%emt 0:00:14]} 20. Qxd5 {[%emt 0:00:08]} Nf6 {[%emt 0:01:37]} 21. Qxf7+ {[%emt 0:06:02]} Kxf7 {[%emt 0:00:11]} 22. Rxc7 {[%emt 0:00:06]} Nd5 {[%emt 0:00:31]} 23. Rc4 {[%emt 0:02:41]} axb4 {[%emt 0:03:23]} 24. axb4 {[%emt 0:00:03]} Rb8 {[%emt 0:02:20]} 25. Bd2 {[%emt 0:02:58]} Rb5 {[%emt 0:01:42]} 26. Rc5 {[%emt 0:08:19]} Reb8 {[%emt 0:00:21]} 27. Rec1 {[%emt 0:02:19]} Bf6 {[%emt 0:03:34]} 28. Kf1 {[%emt 0:03:31]} e6 {[%emt 0:04:44]} 29. Rxb5 {[%emt 0:02:04]} Rxb5 {[%emt 0:00:09]} 30. Rc4 {[%emt 0:01:23]} Ke8 {[%emt 0:04:04]} 31. Ne1 {[%emt 0:02:12]} Rb7 {[%emt 0:02:43]} 32. Nc2 {[%emt 0:01:33]} Be7 {[%emt 0:01:17]} 33. Ke2 {[%emt 0:01:16]} Kd7 {[%emt 0:01:25]} 34. g3 {[%emt 0:01:12]} Bd6 {[%emt 0:01:03]} 35. Kd3 {[%emt 0:03:29]} Rb8 {[%emt 0:03:11]} 36. h4 {[%emt 0:03:05]} Rb7 {[%emt 0:01:22]} 37. Ke4 {[%emt 0:03:34]} Nf6+ {[%emt 0:01:37]} 38. Kf3 {[%emt 0:01:30]} Nd5 {[%emt 0:00:56]} 39. Ke4 {[%emt 0:04:33]} Nf6+ {[%emt 0:00:16]} 40. Kd3 {[%emt 0:00:07]} Nd5 {[%emt 0:00:18]} 41. Ne3 {[%emt 0:30:53]} Nxb4+ {[%emt 0:33:11]} 42. Bxb4 {[%emt 0:00:06]} Bxb4 {[%emt 0:01:02]} 43. Ng4 {[%emt 0:01:13]} Ke7 {[%emt 0:02:00]} 44. Ke4 {[%emt 0:01:11]} Bd6 {[%emt 0:00:58]} 45. Rc2 {[%emt 0:00:37]} Rb4 {[%emt 0:02:28]} 46. Rc3 {[%emt 0:01:21]} Ra4 {[%emt 0:02:40]} 47. Rb3 {[%emt 0:01:07]} Bc5 {[%emt 0:06:37]} 48. Rb7+ {[%emt 0:01:05]} Kd6 {[%emt 0:00:32]} 49. Rxh7 {[%emt 0:00:03]} Bxd4 {[%emt 0:02:53]} 50. Kf3 {[%emt 0:00:08]} Ra8 {[%emt 0:01:15]} 51. Rh6 {[%emt 0:01:34]} Rg8 {[%emt 0:00:00]} 52. Ke4 {[%emt 0:00:00]} Bc3 {[%emt 0:00:00]} 53. f4 {[%emt 0:00:00]} Rg7 {[%emt 0:00:00]} 54. Ne5 {[%emt 0:00:00]} Bxe5 {[%emt 0:00:00]} 55. fxe5+ {[%emt 0:00:00]} Ke7 {[%emt 0:00:00]} 56. Rh8 {[%emt 0:00:00]} g5 {[%emt 0:00:00]} 57. h5 {[%emt 0:00:00]} 1-0

[Event "FIDE WSTC Open 50 2025"]
[Site "Prague"]
[Date "2025.02.17"]
[Round "1.37"]
[White "Andersson, Ulf"]
[Black "Kolar, Pavel"]
[Result "1-0"]
[Annotator "ChessBase"]
[ECO "D43"]
[WhiteElo "2518"]
[BlackElo "2165"]
[PlyCount "53"]
[EventDate "2025.02.17"]
[EventType "team-tourn"]
[EventCountry "CZE"]
[SourceTitle "playchess.com"]
[Source "ChessBase"]
[SourceQuality "1"]
[TimeControl "40/5400+30:1800+30"]

1. d4 {[%emt 0:00:12]} e6 {[%emt 0:00:42]} 2. Nf3 {[%emt 0:00:53]} Nf6 {[%emt 0:00:21]} 3. c4 {[%emt 0:00:29]} d5 {[%emt 0:00:23]} 4. Nc3 {[%emt 0:00:47]} c6 {[%emt 0:01:04]} 5. Qd3 {[%emt 0:03:13]} Nbd7 {[%emt 0:01:00]} 6. g3 {[%emt 0:01:08]} Be7 {[%emt 0:01:10]} 7. Bg2 {[%emt 0:00:14]} b6 {[%emt 0:04:46]} 8. O-O {[%emt 0:03:10]} Ba6 {[%emt 0:02:16]} 9. b3 {[%emt 0:00:18]} Rc8 {[%emt 0:00:37]} 10. Rd1 {[%emt 0:01:49]} c5 {[%emt 0:02:59]} 11. Nb5 {[%emt 0:01:04]} cxd4 {[%emt 0:02:31]} 12. Nfxd4 {[%emt 0:02:04]} dxc4 {[%emt 0:20:27]} 13. bxc4 {[%emt 0:00:46]} Ne5 {[%emt 0:00:53]} 14. Qb3 {[%emt 0:01:09]} O-O {[%emt 0:04:16]} 15. Nxe6 {[%emt 0:02:16]} Qxd1+ {[%emt 0:01:44]} 16. Qxd1 {[%emt 0:00:05]} fxe6 {[%emt 0:00:05]} 17. Qa4 {[%emt 0:11:36]} Bxb5 {[%emt 0:01:15]} 18. cxb5 {[%emt 0:00:24]} Bc5 {[%emt 0:03:57]} 19. Ba3 {[%emt 0:01:02]} Ned7 {[%emt 0:09:52]} 20. Bxc5 {[%emt 0:02:00]} Rxc5 {[%emt 0:00:28]} 21. Rd1 {[%emt 0:00:52]} Rc7 {[%emt 0:05:25]} 22. h3 {[%emt 0:03:36]} Nc5 {[%emt 0:01:13]} 23. Qf4 {[%emt 0:03:24]} Re7 {[%emt 0:04:52]} 24. Qe5 {[%emt 0:01:08]} Nfd7 {[%emt 0:03:18]} 25. Qc7 {[%emt 0:03:57]} Kf7 {[%emt 0:08:10]} 26. Qxa7 {[%emt 0:00:48]} Rc8 {[%emt 0:02:19]} 27. Bc6 {[%emt 0:01:01]} 1-0

[Event "FIDE WSTC Open 50 2025"]
[Site "Prague"]
[Date "2025.02.17"]
[Round "1.38"]
[White "Musil, Martin"]
[Black "Svensson, Bengt"]
[Result "0-1"]
[Annotator "ChessBase"]
[ECO "B34"]
[WhiteElo "1944"]
[BlackElo "2297"]
[PlyCount "84"]
[EventDate "2025.02.17"]
[EventType "team-tourn"]
[EventCountry "CZE"]
[SourceTitle "playchess.com"]
[Source "ChessBase"]
[SourceQuality "1"]
[TimeControl "40/5400+30:1800+30"]

1. e4 {[%emt 0:00:04]} c5 {[%emt 0:00:12]} 2. Nf3 {[%emt 0:00:10]} Nc6 {[%emt 0:00:43]} 3. d4 {[%emt 0:00:12]} cxd4 {[%emt 0:00:06]} 4. Nxd4 {[%emt 0:00:02]} Nf6 {[%emt 0:00:25]} 5. Nc3 {[%emt 0:00:10]} e5 {[%emt 0:01:20]} 6. Nb3 {[%emt 0:02:33]} Bb4 {[%emt 0:01:35]} 7. Qd3 {[%emt 0:09:48]} d5 {[%emt 0:05:15]} 8. exd5 {[%emt 0:02:35]} Nxd5 {[%emt 0:03:00]} 9. Bd2 {[%emt 0:01:29]} Nxc3 {[%emt 0:04:02]} 10. Bxc3 {[%emt 0:00:16]} O-O {[%emt 0:02:58]} 11. Bxb4 Nxb4 {[%emt 0:02:25]} 12. Qc3 Qh4 {[%emt 0:07:29]} 13. Bd3 {[%emt 0:29:01]} Nxd3+ {[%emt 0:07:28]} 14. Qxd3 {[%emt 0:00:46]} Be6 {[%emt 0:00:11]} 15. O-O {[%emt 0:01:16]} Bc4 {[%emt 0:01:07]} 16. Qf3 {[%emt 0:02:01]} Bxf1 {[%emt 0:02:04]} 17. Rxf1 {[%emt 0:00:02]} Qb4 {[%emt 0:03:24]} 18. Qe2 {[%emt 0:01:26]} Rfe8 {[%emt 0:01:15]} 19. h3 {[%emt 0:00:53]} Rad8 {[%emt 0:01:15]} 20. c3 {[%emt 0:01:35]} Qa4 {[%emt 0:01:45]} 21. Ra1 {[%emt 0:02:52]} h6 {[%emt 0:02:25]} 22. Nc5 {[%emt 0:02:19]} Qc6 {[%emt 0:00:17]} 23. Nb3 {[%emt 0:03:47]} Rd6 {[%emt 0:03:05]} 24. Nd2 {[%emt 0:10:20]} Qd7 {[%emt 0:05:16]} 25. Ne4 {[%emt 0:01:26]} Rd5 {[%emt 0:01:15]} 26. Rc1 {[%emt 0:03:27]} b6 {[%emt 0:03:12]} 27. Rc2 {[%emt 0:07:40]} Rd1+ {[%emt 0:05:39]} 28. Kh2 {[%emt 0:00:03]} Qd3 {[%emt 0:00:34]} 29. c4 {[%emt 0:04:22]} Qxe2 {[%emt 0:00:56]} 30. Rxe2 {[%emt 0:00:02]} Red8 {[%emt 0:01:38]} 31. b3 {[%emt 0:01:02]} f6 {[%emt 0:02:46]} 32. f3 {[%emt 0:02:28]} Kf7 {[%emt 0:00:31]} 33. Rc2 {[%emt 0:01:21]} f5 {[%emt 0:01:52]} 34. Nc3 {[%emt 0:00:11]} R1d2 {[%emt 0:00:15]} 35. Rc1 {[%emt 0:00:11]} R8d3 {[%emt 0:00:34]} 36. Kh1 {[%emt 0:05:51]} Ke6 {[%emt 0:01:43]} 37. a3 {[%emt 0:01:13]} Rf2 {[%emt 0:05:03]} 38. b4 {[%emt 0:02:50]} Rdd2 {[%emt 0:00:54]} 39. Rg1 Rc2 {[%emt 0:01:30]} 40. Nb5 {[%emt 0:00:14]} a5 {[%emt 0:02:45]} 41. bxa5 {[%emt 0:30:29]} bxa5 {[%emt 0:30:06]} 42. Re1 {[%emt 0:04:32]} Kf6 {[%emt 0:02:43]} 0-1